[Event "WSTCC-65 2024"]
[Site "Krakow"]
[Date "2024.07.07"]
[Round "6.9"]
[White "Garcia Palermo, Carlos Horacio"]
[Black "Maier, Christian"]
[Result "1-0"]
[ECO "D11"]
[WhiteElo "2419"]
[BlackElo "2252"]
[Annotator "TA"]
[PlyCount "47"]
[EventDate "2024.07.01"]
[EventType "team-tourn"]
[EventCountry "POL"]
[SourceTitle "playchess.com"]
[Source "ChessBase"]
[SourceQuality "1"]
[TimeControl "40/5400+30:1800+30"]

{[%evp 12,47,23,14,23,16,27,26,53,51,48,23,31,49,54,32,37,16,42,19,20,35,48,28,21,30,70,51,73,36,47,41,48,40,233,233,416,426]} 1. d4 {[%emt 0:00:05]} d5 {[%emt 0:02:45]} 2. Nf3 {[%emt 0:00:58]} Nf6 {[%emt 0:00:18]} 3. c4 {[%emt 0:00:37]} c6 {[%emt 0:01:46]} 4. e3 {[%emt 0:02:12]} e6 {[%emt 0:00:26]} 5. b3 {[%emt 0:01:41]} Nbd7 {[%emt 0:05:48]} 6. Bb2 {[%emt 0:00:31]} Bd6 {[%emt 0:04:27]} 7. Nbd2 {[%emt 0:00:16]} Qe7 {[%emt 0:01:03]} 8. Ne5 {[%emt 0:00:53]} O-O {[%emt 0:03:10][%cal Be8g8,Bg8h8,Bh8h7][%mdl 32]} 9. Bd3 {[%emt 0:01:09]} Ba3 {[%emt 0:05:23] White has an edge.} 10. Bxa3 {[%emt 0:05:21]} Qxa3 {[%emt 0:00:05]} 11. Qc2 {[%emt 0:02:17]} Nxe5 {[%emt 0:16:55]} 12. dxe5 {[%emt 0:02:29]} Ng4 {[%emt 0:00:04]} 13. Bxh7+ {[%emt 0:17:57]} Kh8 {[%emt 0:00:10]} 14. O-O {[%emt 0:00:19] Strongly threatening Nf3.} Nxe5 {[%emt 0:00:21]} 15. Qc3 {[%emt 0:02:57]} Kxh7 {[%emt 0:00:22]} 16. Qxe5 {[%emt 0:00:08]} Kg8 {[%emt 0:01:14]} 17. e4 {[%emt 0:00:28]} f6 {[%emt 0:03:13]} 18. Qg3 {[%emt 0:04:24]} dxe4 {[%emt 0:02:40]} 19. Nxe4 {[%emt 0:01:14][%cal Bd2e4,Be4d6,Bd6b7][%mdl 32]} e5 {[%emt 0:00:40]} 20. Rad1 {[%emt 0:01:19] [#] Rd6 would now be deadly. White is more active.} Bf5 $1 {[%emt 0:03:24]} 21. Nd6 $36 {[%emt 0:01:05][%mdl 2048] White is more active.} Bc2 {[%emt 0:08:49]} 22. Rd2 {[%emt 0:00:31] aiming for c5.} Rad8 $2 {[%emt 0:00:26]} (22... Qb4 $1 $14 23. Qe3 (23. Rxc2 Qxd6 24. c5 Qd7 $15) 23... a5) 23. c5 $18 {[%emt 0:00:39]} Qxc5 $2 {[%emt 0:00:46] [#]} (23... Rxd6 24. cxd6 Bf5) 24. Nxb7 {[%emt 0:01:16] Weighted Error Value: White=0.10 (very precise) /Black=0.36.  Loses game:     	---       	Black=1      Mistake:       	---       	Black=1      Inaccurate:     	White=1     	Black=2      OK:         	White=6     	Black=5      Best:        	White=2     	---        Strong:       	---       	Black=1} 1-0

[Event "WSTCC-65 2024"]
[Site "Krakow"]
[Date "2024.07.07"]
[Round "6.9"]
[White "Renman, Nils-Gustaf"]
[Black "Wallace, John Paul"]
[Result "1/2-1/2"]
[ECO "A70"]
[WhiteElo "2314"]
[BlackElo "2369"]
[Annotator "TA"]
[PlyCount "100"]
[EventDate "2024.07.01"]
[EventType "team-tourn"]
[EventCountry "POL"]
[SourceTitle "playchess.com"]
[Source "ChessBase"]
[SourceQuality "1"]
[TimeControl "40/5400+30:1800+30"]

{[%evp 23,100,14,45,16,20,12,18,0,14,17,5,0,40,38,76,80,80,66,57,63,79,77,86,79,90,74,139,110,110,107,102,106,104,108,114,105,108,115,115,108,150,32,83,0,114,83,146,147,154,145,145,145,145,137,145,145,145,145,150,47,47,0,24,24,24,24,24,24,24,24,24,24,24,24,24,0,24,24,24]} 1. d4 {[%emt 0:00:03]} Nf6 {[%emt 0:00:00]} 2. c4 {[%emt 0:00:09]} c5 {[%emt 0:00:00]} 3. d5 {[%emt 0:00:19]} e6 {[%emt 0:00:00]} 4. Nc3 {[%emt 0:00:17]} exd5 {[%emt 0:00:00]} 5. cxd5 {[%emt 0:00:07]} d6 {[%emt 0:00:00]} 6. e4 {[%emt 0:00:24]} g6 {[%emt 0:00:06]} 7. Nf3 {[%emt 0:01:54]} Bg7 {[%emt 0:00:09]} 8. Nd2 {[%emt 0:00:24]} O-O {[%emt 0:03:10]} 9. Be2 {[%emt 0:00:02]} a6 {[%emt 0:09:24]} 10. a4 {[%emt 0:00:16]} Nbd7 {[%emt 0:00:26]} 11. O-O {[%emt 0:00:08]} Re8 {[%emt 0:02:17]} 12. Re1 {[%emt 0:05:15]} Rb8 {[%emt 0:06:06]} 13. Qc2 {[%emt 0:14:10]} Nh5 {[%emt 0:08:54]} 14. Bxh5 {[%emt 0:35:05]} gxh5 {[%emt 0:01:28]} 15. Nc4 {[%emt 0:04:33] The position is equal.} Ne5 {[%emt 0:00:50]} 16. Nxe5 {[%emt 0:00:06]} Bxe5 {[%emt 0:00:30]} 17. f4 {[%emt 0:03:56]} Bd4+ {[%emt 0:03:53]} 18. Be3 {[%emt 0:00:36]} Qf6 {[%emt 0:15:05]} 19. Bxd4 {[%emt 0:02:44]} cxd4 {[%emt 0:01:19]} 20. Ne2 {[%emt 0:04:11]} Bg4 {[%emt 0:03:17]} 21. Qd3 {[%emt 0:01:25]} Bxe2 {[%emt 0:01:38]} 22. Rxe2 {[%emt 0:00:16][%cal Be1e2,Be2f2,Bf2f6][%mdl 32]} Qxf4 {[%emt 0:00:11][%cal Of7f5]} 23. Rf1 $1 {[%emt 0:01:28]} (23. Qxd4 Rbc8 $11) 23... Qh6 {[%emt 0:10:19]} 24. Qxd4 {[%emt 0:00:54] White has more active pieces.} Re5 {[%emt 0:01:53]} ({Better is} 24... Rbc8) 25. Ref2 {[%emt 0:00:36][%cal Of2f6]} Rbe8 {[%emt 0:17:38]} 26. Rf6 {[%emt 0:02:35]} Qg7 {[%emt 0:01:55]} (26... Rxe4 $2 27. Qxe4 (27. Rxh6 Rxd4 28. Rxd6 Rd2 $11) 27... Rxe4 28. Rxh6 $18) 27. Rxf7 {[%emt 0:00:14]} Qxf7 {[%emt 0:00:15]} 28. Rxf7 {[%emt 0:00:06]} Kxf7 $16 {[%emt 0:00:05][%mdl 4096] Endgame. KQ-KRR} 29. Qb6 {[%emt 0:02:51]} R8e7 {[%emt 0:00:28]} 30. Qxd6 {[%emt 0:00:23] Threatens to win with Qh6.} Rxe4 {[%emt 0:00:09]} 31. h3 {[%emt 0:00:22]} Rd4 {[%emt 0:06:43]} 32. Kf2 {[%emt 0:02:31]} ({White should try} 32. b4 $16) 32... h4 {[%emt 0:04:02]} (32... Rd2+ $14 33. Kf3 Rd3+ 34. Kf4 h4) 33. Kf3 {[%emt 0:01:34]} (33. Qh6 $16 Rxa4 34. Kg1 (34. Qxh7+ Ke8 $16)) 33... Ree4 {[%emt 0:02:52]} (33... Rxa4 $11 34. Qc5 Re5) 34. Qh6 {[%emt 0:01:38]} Re5 {[%emt 0:01:05]} (34... Rxa4 $142 35. Qxh7+ Kf6) 35. Qxh7+ {[%emt 0:00:50]} Kf6 {[%emt 0:00:20]} 36. Qh8+ {[%emt 0:04:49]} ({Stronger than} 36. Qxb7 Rd3+ 37. Kf2 Rd2+ 38. Kg1 Re1+ 39. Kh2 Rdd1 40. Qb6+ (40. Qxa6+ $2 {gets mated.} Kg5) 40... Kg7 41. Qc7+ (41. Qxa6 $2 Rh1#) 41... Kg6 42. Qc2+ Kg5 $11) 36... Kf5 {[%emt 0:00:24][%csl Gf5][%cal Rd4f4]} 37. Qh5+ $1 {[%emt 0:05:53]} Kf6 {[%emt 0:00:06] [#]} 38. Qh6+ {[%emt 0:00:06]} Kf5 {[%emt 0:00:43] [#]} 39. d6 $1 {[%emt 0:01:17]} Red5 {[%emt 0:00:24]} 40. Qh7+ {[%emt 0:01:08]} Ke6 {[%emt 0:01:42]} 41. Qg6+ {[%emt 0:12:26]} (41. Qxb7 $16 Rxd6 42. Ke3) 41... Kd7 $14 {[%emt 0:04:33]} 42. Ke3 {[%emt 0:04:21]} (42. Qg7+ $14 Kxd6 43. Qxb7 Rxa4 44. Qb3) 42... Rxa4 {[%emt 0:06:17]} 43. Qc2 {[%emt 0:00:41] Some like it hot} Rad4 {[%emt 0:02:08]} 44. Qc7+ {[%emt 0:01:06]} Ke6 {[%emt 0:00:04]} 45. Qe7+ {[%emt 0:00:41]} Kf5 {[%emt 0:00:05]} 46. Qxb7 {[%emt 0:04:11]} Rxd6 {[%emt 0:03:39]} 47. Qf7+ {[%emt 0:00:25]} Ke5 {[%emt 0:00:55]} 48. Qg7+ {[%emt 0:04:12]} Kf5 {[%emt 0:00:07]} 49. Qf7+ {[%emt 0:01:22]} Ke5 {[%emt 0:00:08] ( -> ...Re4+)} 50. Qe7+ {[%emt 0:04:59]} Kf5 $1 {[%emt 0:00:13] Blacks defense is rewarded with a draw.   Weighted Error Value: White=0.18 (very precise) /Black=0.18 (very precise) .  Mistake:       	White=4     	Black=4      Inaccurate:     	---       	Black=3      OK:         	White=17    	Black=8      Best:        	White=1     	Black=7      Strong:       	White=2     	Black=1} 1/2-1/2

[Event "WSTCC-65 2024"]
[Site "Krakow"]
[Date "2024.07.07"]
[Round "6.9"]
[White "McGill, Derek"]
[Black "Mortensen, John"]
[Result "1/2-1/2"]
[ECO "A36"]
[WhiteElo "1827"]
[BlackElo "2048"]
[Annotator "RC"]
[PlyCount "106"]
[EventDate "2024.07.01"]
[EventType "team-tourn"]
[EventCountry "POL"]
[SourceTitle "playchess.com"]
[Source "ChessBase"]
[SourceQuality "1"]
[TimeControl "40/5400+30:1800+30"]

1. c4 {[%emt 0:00:05]} c5 {[%emt 0:00:10]} 2. Nc3 {[%emt 0:00:06]} Nc6 {[%emt 0:00:13]} 3. g3 {[%emt 0:00:10]} g6 {[%emt 0:00:25]} 4. Bg2 {[%emt 0:00:05]} Bg7 {[%emt 0:00:23]} 5. e4 {[%emt 0:01:29]} e6 {[%emt 0:01:38]} 6. Nge2 {[%emt 0:00:23]} Nge7 {[%emt 0:00:16]} 7. d3 {[%emt 0:01:13]} d6 {[%emt 0:01:01]} 8. O-O {[%emt 0:04:02]} O-O {[%emt 0:00:43]} 9. Be3 {[%emt 0:02:29]} Nd4 {[%emt 0:04:08]} 10. Qd2 {[%emt 0:07:13]} Re8 {[%emt 0:03:27]} 11. Rab1 {[%emt 0:03:22]} Nec6 {[%emt 0:04:58]} 12. f4 {[%emt 0:10:41]} Bd7 {[%emt 0:07:17]} 13. g4 {[%emt 0:05:21]} f5 {[%emt 0:05:34]} 14. gxf5 {[%emt 0:09:33]} exf5 {[%emt 0:02:36]} 15. Ng3 {[%emt 0:01:33]} Ne7 {[%emt 0:06:14]} 16. Nce2 {[%emt 0:10:36]} Nxe2+ {[%emt 0:04:21]} 17. Qxe2 {[%emt 0:01:42]} Nc6 {[%emt 0:00:39]} 18. Qd2 {[%emt 0:03:48]} Nd4 {[%emt 0:05:00]} 19. Ne2 {[%emt 0:01:07]} Bc6 {[%emt 0:01:29]} 20. Bxd4 {[%emt 0:08:22]} cxd4 {[%emt 0:00:30]} 21. Ng3 {[%emt 0:00:16]} Qd7 {[%emt 0:03:05]} 22. Rbe1 {[%emt 0:01:49]} Qf7 {[%emt 0:00:42]} 23. Qa5 {[%emt 0:03:17]} b6 {[%emt 0:04:47]} 24. Qa3 {[%emt 0:02:56]} Qd7 {[%emt 0:03:21]} 25. b4 {[%emt 0:00:20]} Rac8 {[%emt 0:03:22]} 26. Qc1 {[%emt 0:07:43]} b5 {[%emt 0:02:57]} 27. c5 {[%emt 0:06:04]} dxc5 {[%emt 0:00:24]} 28. bxc5 {[%emt 0:00:20]} Bf8 {[%emt 0:01:58]} 29. Rf2 {[%emt 0:01:09]} Qe7 {[%emt 0:04:30]} 30. Rfe2 {[%emt 0:01:33]} Qxc5 {[%emt 0:03:58]} 31. Qxc5 {[%emt 0:00:34]} Bxc5 {[%emt 0:00:09]} 32. exf5 {[%emt 0:00:31]} Rxe2 {[%emt 0:01:16]} 33. Rxe2 {[%emt 0:00:19]} Bxg2 {[%emt 0:00:20]} 34. Kxg2 {[%emt 0:00:18]} Bd6 {[%emt 0:00:29]} 35. Kf3 {[%emt 0:01:19]} Kf7 {[%emt 0:02:04]} 36. Ne4 {[%emt 0:05:10]} Be7 {[%emt 0:00:22]} 37. f6 {[%emt 0:00:16]} Bf8 {[%emt 0:00:04]} 38. Ng5+ {[%emt 0:01:01]} Kxf6 {[%emt 0:00:20]} 39. Nxh7+ {[%emt 0:00:09]} Kg7 {[%emt 0:00:59]} 40. Ng5 {[%emt 0:00:45]} Bc5 {[%emt 0:05:02]} 41. Ne6+ {[%emt 0:02:24]} Kf6 {[%emt 0:00:08]} 42. Nxc5 {[%emt 0:01:09]} Rxc5 {[%emt 0:00:05]} 43. Ke4 {[%emt 0:00:06]} Rf5 {[%emt 0:00:46]} 44. Rf2 {[%emt 0:04:28]} Ke6 {[%emt 0:01:38]} 45. Kxd4 {[%emt 0:00:13]} g5 {[%emt 0:00:37]} 46. Re2+ Kd6 {[%emt 0:00:00]} 47. fxg5 {[%emt 0:00:32]} Rxg5 {[%emt 0:00:00]} 48. Rf2 {[%emt 0:03:28]} Rg4+ {[%emt 0:00:50]} 49. Kc3 a5 50. a3 {[%emt 0:03:44]} Ra4 {[%emt 0:01:08]} 51. Kb3 {[%emt 0:00:19]} Rd4 {[%emt 0:00:07]} 52. Rf3 {[%emt 0:00:56]} Rh4 {[%emt 0:00:34]} 53. Rf2 {[%emt 0:01:08]} Rd4 {[%emt 0:00:43]} 1/2-1/2

[Event "WSTCC-65 2024"]
[Site "Krakow"]
[Date "2024.07.07"]
[Round "6.10"]
[White "Vatter, Hans-Joachim"]
[Black "Cocozza, Mario"]
[Result "0-1"]
[ECO "B12"]
[WhiteElo "2214"]
[BlackElo "2206"]
[Annotator "TA"]
[PlyCount "68"]
[EventDate "2024.07.01"]
[EventType "team-tourn"]
[EventCountry "POL"]
[SourceTitle "playchess.com"]
[Source "ChessBase"]
[SourceQuality "1"]
[TimeControl "40/5400+30:1800+30"]

{[%evp 13,68,28,54,22,29,21,23,-14,-17,-22,-1,-54,-100,-84,-61,-106,-93,-98,-100,-144,-127,-134,-138,-141,-112,-166,-174,-160,-172,-168,-146,-145,-134,-138,-117,-125,-116,-190,-191,-231,-212,-274,-280,-353,-355,-355,-356,-463,-314,-452,-260,-450,-357,-383,-383,-385,-378]} 1. e4 {[%emt 0:00:04]} c6 {[%emt 0:00:08][%cal Bc7c6,Bc6c5,Bc5c4][%mdl 32]} 2. d4 {[%emt 0:00:05]} d5 {[%emt 0:00:04]} 3. e5 {[%emt 0:00:06]} Bf5 {[%emt 0:00:11]} 4. Nf3 {[%emt 0:00:04]} e6 {[%emt 0:00:09]} 5. Be2 {[%emt 0:00:05]} c5 {[%emt 0:00:20]} 6. Be3 {[%emt 0:00:10]} Qb6 {[%emt 0:00:41]} 7. Nc3 {[%emt 0:04:05]} Nc6 {[%emt 0:00:21][%cal Bb8c6,Bc6b4,Bb4c2][%mdl 32]} 8. Na4 {[%emt 0:21:13]} Qa5+ {[%emt 0:00:16]} 9. c3 {[%emt 0:00:01]} c4 {[%emt 0:00:17]} 10. b4 {[%emt 0:01:04] [#] Weiß hat minimalen Vorteil.} Bxb4 {[%emt 0:05:17]} 11. cxb4 {[%emt 0:00:43]} Nxb4 {[%emt 0:00:08]} 12. Nc3 {[%emt 0:03:17]} (12. Nc5 $1 $11 Nc2+ (12... Nxa2+ $2 {verliert.} 13. Qd2 $18) 13. Kf1 Nxa1 14. Qxa1) 12... Nc2+ $15 {[%emt 0:02:03]} 13. Kd2 {[%emt 0:00:57][%cal Of3h4]} Nxa1 {[%emt 0:00:10]} 14. Qxa1 {[%emt 0:00:10]} b5 {[%emt 0:18:18] [#] ...b4 wäre nun fies.} 15. a3 {[%emt 0:00:32]} h6 {[%emt 0:05:30]} 16. Rc1 {[%emt 0:00:33]} Ne7 {[%emt 0:01:24]} 17. Qb2 {[%emt 0:05:31]} Rb8 {[%emt 0:07:27]} 18. Bd1 {[%emt 0:06:00]} Nc6 {[%emt 0:17:28]} 19. Bc2 {[%emt 0:07:36]} (19. Ke1 $17) 19... Bxc2 $19 {[%emt 0:03:26]} 20. Rxc2 {[%emt 0:01:26]} O-O {[%emt 0:00:39] Zielt auf ...b4 ab. Sehr scharf! Schwarz steht aktiver.} 21. Rc1 {[%emt 0:07:53]} b4 {[%emt 0:12:09]} 22. axb4 {[%emt 0:00:14]} Rxb4 {[%emt 0:00:07]} 23. Qa1 {[%emt 0:02:33]} Rfb8 {[%emt 0:00:23]} 24. Qxa5 {[%emt 0:02:29]} Nxa5 {[%emt 0:00:09]} 25. Rc2 {[%emt 0:01:06]} (25. Ke2 $17 {kämpft weiter.}) 25... Nc6 {[%emt 0:08:24]} 26. Kc1 {[%emt 0:03:15]} Rb3 {[%emt 0:01:29] Droht ...Nb4 und aus.} 27. Nd2 {[%emt 0:00:23]} Ra3 {[%emt 0:01:06]} 28. Ndb1 {[%emt 0:05:18]} Ra1 {[%emt 0:02:35]} 29. Rb2 {[%emt 0:01:34]} Nb4 {[%emt 0:00:28]} 30. Kd2 {[%emt 0:00:11] Lässt Nd3 nicht zu} Rb6 {[%emt 0:00:15] Und jetzt ...a5 wäre schön.} 31. g3 {[%emt 0:03:59]} (31. Ne2 $142) 31... Kf8 {[%emt 0:04:02]} (31... a5 $142 32. Ne4 dxe4) 32. Ke2 $2 {[%emt 0:03:59]} (32. Ne2 {war nötig.}) 32... Nc6 {[%emt 0:01:27]} 33. Rxb6 {[%emt 0:02:53]} axb6 {[%emt 0:00:08]} 34. Nd2 {[%emt 0:01:52]} Na7 {[%emt 0:00:20] Gewichteter Fehlerwert: Weiß=0.41/Schwarz=0.28 (präzise) .  Fehler:       	Weiß=5     	Schwarz=1     Ungenau:       	Weiß=4     	Schwarz=1     OK:         	Weiß=8     	Schwarz=12    Bester:       	Weiß=2     	Schwarz=3     Brilliant:      	---       	Schwarz=1} 0-1

[Event "WSTCC-65 2024"]
[Site "Krakow"]
[Date "2024.07.07"]
[Round "6.10"]
[White "Smith, Andrew Philip"]
[Black "Soderberg, Per"]
[Result "1/2-1/2"]
[ECO "B95"]
[WhiteElo "2037"]
[BlackElo "2015"]
[Annotator "RC"]
[PlyCount "93"]
[EventDate "2024.07.01"]
[EventType "team-tourn"]
[EventCountry "POL"]
[SourceTitle "playchess.com"]
[Source "ChessBase"]
[SourceQuality "1"]
[TimeControl "40/5400+30:1800+30"]

1. e4 {[%emt 0:00:06]} c5 {[%emt 0:00:07]} 2. Nf3 {[%emt 0:00:12]} d6 {[%emt 0:00:07]} 3. d4 {[%emt 0:00:12]} cxd4 {[%emt 0:00:07]} 4. Nxd4 {[%emt 0:00:05]} Nf6 {[%emt 0:00:06]} 5. Nc3 {[%emt 0:00:07]} a6 {[%emt 0:00:05]} 6. Bg5 {[%emt 0:00:40]} e6 {[%emt 0:00:41]} 7. Be2 {[%emt 0:01:11]} Be7 {[%emt 0:01:41]} 8. O-O {[%emt 0:01:24]} Qc7 {[%emt 0:02:25]} 9. Qd3 {[%emt 0:07:39]} Nbd7 {[%emt 0:01:07]} 10. Rad1 {[%emt 0:11:11]} b6 {[%emt 0:07:41]} 11. Qg3 {[%emt 0:11:33]} Bb7 {[%emt 0:05:56]} 12. f4 {[%emt 0:09:01]} Bf8 {[%emt 0:16:00]} 13. f5 {[%emt 0:15:47]} e5 {[%emt 0:03:40]} 14. Ne6 {[%emt 0:00:56]} Qb8 {[%emt 0:15:53]} 15. Bxf6 {[%emt 0:16:15]} gxf6 {[%emt 0:02:56]} 16. Bh5 {[%emt 0:03:45]} Nc5 {[%emt 0:04:05]} 17. Nxc5 {[%emt 0:06:47]} bxc5 {[%emt 0:01:00]} 18. Be2 {[%emt 0:02:06]} Bc6 {[%emt 0:02:58]} 19. b3 {[%emt 0:01:22]} Qb7 {[%emt 0:01:27]} 20. Bc4 {[%emt 0:00:14]} O-O-O {[%emt 0:02:17]} 21. Qd3 {[%emt 0:00:54]} Bb5 {[%emt 0:03:04]} 22. Nxb5 {[%emt 0:01:24]} axb5 {[%emt 0:00:25]} 23. Bxb5 {[%emt 0:00:04]} Qb6 {[%emt 0:01:41]} 24. Bc4 {[%emt 0:00:55]} h5 {[%emt 0:02:20]} 25. Kh1 {[%emt 0:00:13]} Rh7 {[%emt 0:01:19]} 26. a3 {[%emt 0:00:55]} h4 {[%emt 0:00:58]} 27. Rb1 {[%emt 0:01:47]} Kc7 {[%emt 0:03:37]} 28. Bd5 {[%emt 0:00:39]} Rb8 {[%emt 0:00:44]} 29. b4 {[%emt 0:01:55]} h3 {[%emt 0:02:13]} 30. g3 {[%emt 0:00:15]} Bh6 {[%emt 0:02:14]} 31. Rb3 {[%emt 0:02:15]} Qa7 {[%emt 0:05:29]} 32. Rd1 {[%emt 0:00:43]} cxb4 {[%emt 0:01:47]} 33. Bc4 {[%emt 0:02:02]} Bf8 {[%emt 0:00:43]} 34. axb4 {[%emt 0:01:16]} Qf2 {[%emt 0:04:15]} 35. Qe2 {[%emt 0:00:06]} Qxe2 {[%emt 0:00:19]} 36. Bxe2 {[%emt 0:00:01]} d5 {[%emt 0:00:11]} 37. exd5 {[%emt 0:01:09]} Rxb4 {[%emt 0:00:15]} 38. Rxb4 {[%emt 0:00:17]} Bxb4 {[%emt 0:00:06]} 39. Kg1 {[%emt 0:00:31]} Bc5+ {[%emt 0:00:30]} 40. Kf1 {[%emt 0:00:11]} Rh8 {[%emt 0:00:31]} 41. Bf3 {[%emt 0:06:35]} Rb8 {[%emt 0:03:07]} 42. Ke2 {[%emt 0:06:07]} Rb4 {[%emt 0:02:18]} 43. Bh5 {[%emt 0:07:50]} Rc4 {[%emt 0:03:50]} 44. Kd3 {[%emt 0:04:30]} Rd4+ {[%emt 0:03:21]} 45. Kc3 {[%emt 0:04:00]} Rxd1 {[%emt 0:00:20]} 46. Bxd1 {[%emt 0:00:06]} Bg1 {[%emt 0:00:07]} 47. Bg4 {[%emt 0:00:09]} 1/2-1/2

[Event "WSTCC-65 2024"]
[Site "Krakow"]
[Date "2024.07.07"]
[Round "6.10"]
[White "Cordes, Steffen"]
[Black "Lohan, Martin"]
[Result "1-0"]
[ECO "C10"]
[WhiteElo "1989"]
[BlackElo "1826"]
[Annotator "NA RC"]
[PlyCount "99"]
[EventDate "2024.07.01"]
[EventType "team-tourn"]
[EventCountry "POL"]
[SourceTitle "playchess.com"]
[Source "ChessBase"]
[SourceQuality "1"]
[TimeControl "40/5400+30:1800+30"]

1. e4 {[%emt 0:00:03]} e6 {[%emt 0:00:19]} 2. d4 {[%emt 0:00:07]} d5 {[%emt 0:00:06]} 3. Nd2 {[%emt 0:00:05]} dxe4 {[%emt 0:00:49]} 4. Nxe4 {[%emt 0:00:10]} Nd7 {[%emt 0:00:07]} 5. Nf3 {[%emt 0:01:35]} Ngf6 {[%emt 0:00:07]} 6. Bg5 {[%emt 0:02:05]} Be7 {[%emt 0:00:23]} 7. Nxf6+ {[%emt 0:01:56]} Nxf6 {[%emt 0:01:24]} 8. Bd3 {[%emt 0:00:35]} O-O {[%emt 0:02:09]} 9. O-O {[%emt 0:01:14]} c5 {[%emt 0:04:06]} 10. c3 {[%emt 0:02:04]} b6 {[%emt 0:03:14]} 11. Bxf6 {[%emt 0:09:03]} Bxf6 {[%emt 0:00:13]} 12. Be4 {[%emt 0:01:18]} Rb8 {[%emt 0:05:33]} 13. Qd3 {[%emt 0:02:06]} g6 {[%emt 0:01:09]} 14. Rad1 {[%emt 0:03:14]} Bb7 {[%emt 0:09:58]} 15. Rfe1 {[%emt 0:03:25]} cxd4 {[%emt 0:06:10]} 16. Nxd4 {[%emt 0:14:01]} Bxd4 {[%emt 0:05:14]} 17. Qxd4 {[%emt 0:00:21]} Qxd4 {[%emt 0:02:40]} 18. Rxd4 {[%emt 0:00:08]} Bxe4 {[%emt 0:00:16]} 19. Rexe4 {[%emt 0:00:16]} Rfd8 {[%emt 0:00:16]} 20. Kf1 {[%emt 0:01:38]} Kf8 {[%emt 0:00:08]} 21. Ke2 {[%emt 0:00:19]} Ke7 {[%emt 0:00:53]} 22. Ke3 {[%emt 0:02:34]} f5 {[%emt 0:04:20]} 23. Rxd8 {[%emt 0:06:30]} Rxd8 {[%emt 0:00:13]} 24. Rh4 {[%emt 0:00:56]} h5 {[%emt 0:00:40]} 25. Ra4 {[%emt 0:00:22]} Rd7 {[%emt 0:00:33]} 26. f4 {[%emt 0:02:02]} Kf6 {[%emt 0:14:31]} 27. Rd4 {[%emt 0:01:22]} Re7 {[%emt 0:01:02]} 28. Rd6 {[%emt 0:00:34]} Rc7 {[%emt 0:04:10]} 29. Kd3 {[%emt 0:11:20]} Ke7 {[%emt 0:03:10]} 30. Rd4 {[%emt 0:00:15]} Kf6 {[%emt 0:05:57]} 31. c4 {[%emt 0:02:20]} Rc6 {[%emt 0:02:50]} 32. Rd7 {[%emt 0:01:29]} a5 {[%emt 0:00:44]} 33. Kd4 {[%emt 0:01:08]} g5 {[%emt 0:07:17]} 34. g3 {[%emt 0:00:41]} gxf4 {[%emt 0:00:48]} 35. gxf4 {[%emt 0:00:01]} Rc8 {[%emt 0:00:21]} 36. Rd6 {[%emt 0:08:01]} Rb8 {[%emt 0:00:13]} 37. b3 {[%emt 0:00:51]} Ke7 {[%emt 0:00:17]} 38. Ke5 {[%emt 0:00:15]} b5 {[%emt 0:01:16]} 39. Rxe6+ {[%emt 0:00:23]} Kd7 {[%emt 0:03:14]} 40. c5 {[%emt 0:01:20]} Rc8 {[%emt 0:00:11]} 41. Rd6+ {[%emt 0:30:28]} Ke7 {[%emt 0:30:08]} 42. Kd5 {[%emt 0:01:28]} Rg8 {[%emt 0:00:30]} 43. c6 {[%emt 0:02:45]} Rg2 {[%emt 0:00:05]} 44. Rd7+ {[%emt 0:00:23]} Ke8 {[%emt 0:00:13]} 45. Kc5 {[%emt 0:01:19]} a4 {[%emt 0:00:43]} 46. Kxb5 {[%emt 0:02:28]} axb3 {[%emt 0:00:12]} 47. axb3 {[%emt 0:00:12]} Rxh2 {[%emt 0:00:15]} 48. b4 {[%emt 0:00:21]} h4 {[%emt 0:01:25]} 49. Rh7 {[%emt 0:00:24]} Kd8 {[%emt 0:01:03]} 50. Kb6 {[%emt 0:00:16]} 1-0